Workbook

Sheet LSA選定
A1: リニアサーボアクチュエーター選定計算 | N1: =A9 -> LSA-S6SS(M) | P1: 違う運転ﾊﾟﾀｰﾝによる連続運転推力計算
B3: のところを設定してください（必須）
N4: 左のﾘﾆｱｻｰﾎﾞｱｸﾁｭｴｰﾀ選定計算は、1ｻｲｸﾙの運転時間の計算になります。 | U4: =NOW() -> 2020-12-04T09:37:43.340
N5: 違う運転ﾊﾟﾀｰﾝで連続移動する場合は、選定計算結果のＩ：1ｻｲｸﾙの運転時間、
N6: 13：定格推力計算用の結果を ﾎﾞﾀﾝを押して運転ﾊﾟﾀｰﾝを記憶
N7: させた後、計算結果が定格推力以下であるか確認してください。
A8: 機種を選択してください↓
A9: LSA-S6SS(M) | N9: I:1ｻｲｸﾙの運転時間 | P9: =J30 -> 2.653 | Q9: sec
N10: 13：定格推力計算用 | P10: =D38 -> 163.1142629
T11: =(D19*9806.665)*X14/(D18*9806.665) -> 0.2019618433 | U11: T1 | W11: =(D19*9806.667)/(D18*9806.667) -> 1 | X11: =D18*9806.665 -> 9806.665 | Y11: ACC | AA11: 収束時間 | AB11: =VLOOKUP(A9,AD:AI,2,FALSE) -> 0.15 | AD11: 機種 | AE11: 収束時間 | AF11: ｽﾗｲﾀﾞ自重 | AG11: 走行抵抗 | AH11: 定格推力 | AI11: 最大推力
A12: 1： | B12: 速度 (mm/sec) | D12: 1000 | E12: mm/s | F12: 到達速度（Ｖｍａｘ） | J12: =ROUNDDOWN(X12*T12,3) -> 1980.572 | K12: mm/s | N12: 注）最大推力がNGとなった計算結果を書込まないでください。 | T12: =SQRT(X13) -> 0.2019618433 | U12: T2 | X12: =D19*9806.665 -> 9806.665 | Y12: DCL | AA12: ｽﾗｲﾀﾞ自重 | AB12: =VLOOKUP(A9,AD:AI,3,FALSE) -> 1.4 | AD12: LSA-S6SS(M) | AE12: 0.15 | AF12: 1.4 | AG12: =5*(T25*0.001)+5 -> 10 | AH12: 15 | AI12: 60 | AK12: LSA-S6SS(M)定格推力 | AL12: LSA-S6SS(M)最大推力 | AM12: N | AN12: 0
N13: 運転ﾊﾟﾀｰﾝNo. | P13: I：1ｻｲｸﾙ運転時間 | Q13: 13：定格推力計算用 | W13: =(W11*W11)*X11/2 -> 4903.3325 | X13: =D15/(W13+W14) -> 0.04078858613 | AA13: 走行抵抗 | AB13: =VLOOKUP(A9,AD:AI,4,FALSE) -> 10 | AD13: LSA-S8SS(M) | AE13: 0.2 | AF13: 1.7 | AG13: =9*(T25*0.001)+7 -> 16 | AH13: 25 | AI13: 100 | AK13: LSA-S8SS(M)定格推力 | AL13: LSA-S8SS(M)最大推力 | AM13: N | AN13: 0
F14: A： 台形/三角 | J14: =IF(D12<T16,"台形","三角") -> 台形 | N14: ﾊﾟﾀｰﾝ | O14: 1 | P14: 2.152 | Q14: 38.75962017 | W14: =X12/2 -> 4903.3325 | X14: =SQRT(X13) -> 0.2019618433 | Y14: T2 | AA14: 定格推力 | AB14: =VLOOKUP(A9,AD:AI,5,FALSE) -> 15 | AD14: LSA-S8HS(M) | AE14: 0.2 | AF14: 2 | AG14: =9*(T25*0.001)+7 -> 16 | AH14: 35 | AI14: 140 | AK14: LSA-S8HS(M)定格推力 | AL14: LSA-S8HS(M)最大推力 | AM14: N | AN14: 0
A15: 2： | B15: 移動距離 (mm) | D15: 400 | E15: mm | N15: ﾊﾟﾀｰﾝ | O15: 2 | AA15: 最大推力 | AB15: =VLOOKUP(A9,AD:AI,6,FALSE) -> 60 | AD15: LSA-S10SS(M) | AE15: 0.2 | AF15: 3.5 | AG15: =20*(T25*0.001)+13.5 -> 33.5 | AH15: 65 | AI15: 260 | AK15: LSA-S10SS(M)定格推力 | AL15: LSA-S10SS(M)最大推力 | AM15: N | AN15: 0
F16: B： 加速時間 (sec) | J16: =ROUNDUP(IF(J12<D12,T11,D12/(9806.665*D18)),6) -> 0.101972 | K16: sec | N16: ﾊﾟﾀｰﾝ | O16: 3 | T16: =X12*X14 -> 1980.57214 | U16: 到達速度 | AA16: 定格推力表示 | AB16: =VLOOKUP(A9,AD:AK,8,FALSE) -> LSA-S6SS(M)定格推力 | AD16: LSA-S10HS(M) | AE16: 0.2 | AF16: 4 | AG16: =20*(T25*0.001)+13.5 -> 33.5 | AH16: 80 | AI16: 320 | AK16: LSA-S10HS(M)定格推力 | AL16: LSA-S10HS(M)最大推力 | AM16: N | AN16: 0
F17: C： 減速時間 (sec) | J17: =ROUNDUP(IF(J12<D12,SQRT(X13),D12/(9806.665*D19)),6) -> 0.101972 | K17: sec | N17: ﾊﾟﾀｰﾝ | O17: 4 | AA17: 最大推力表示 | AB17: =VLOOKUP(A9,AD:AL,9,FALSE) -> LSA-S6SS(M)最大推力 | AD17: LSA-H8SS(M) | AE17: 0.15 | AF17: 1.5 | AG17: =2*(T25*0.001)+10 -> 12 | AH17: 30 | AI17: 90 | AK17: LSA-H8SS(M)定格推力 | AL17: LSA-H8SS(M)最大推力 | AM17: N | AN17: 0
A18: 3： | B18: 加速度 (G) | D18: 1 | E18: G | N18: ﾊﾟﾀｰﾝ | O18: 5 | AA18: N | AB18: =VLOOKUP(A9,AD:AM,10,FALSE) -> N | AD18: LSA-H8HS(M) | AE18: 0.15 | AF18: 2 | AG18: =2*(T25*0.001)+10 -> 12 | AH18: 60 | AI18: 180 | AK18: LSA-H8HS(M)定格推力 | AL18: LSA-H8HS(M)最大推力 | AM18: N | AN18: 0
A19: 4： | B19: 減速度 (G) | D19: 1 | E19: G | F19: D： 加速時の走行距離 (mm) | J19: =ROUNDUP(9806.665*D18*J16*J16/2,3) -> 50.987 | K19: mm | N19: ﾊﾟﾀｰﾝ | O19: 6 | AA19: 0 | AB19: =VLOOKUP(A9,AD:AN,11,FALSE) -> 0 | AD19: LSA-L15SS(M) | AE19: 0.15 | AF19: 1.5 | AG19: =2*(T25*0.001)+10 -> 12 | AH19: 30 | AI19: 90 | AK19: LSA-L15SS(M)定格推力 | AL19: LSA-L15SS(M)最大推力 | AM19: N | AN19: 0
F20: E： 減速時の走行距離 (mm) | J20: =ROUNDUP(9806.665*D19*J17*J17/2,3) -> 50.987 | K20: mm | N20: ﾊﾟﾀｰﾝ | O20: 7 | AD20: LSA-N10SS(M) | AE20: 0.15 | AF20: 3 | AG20: =5*(T25*0.001)+16.5 -> 21.5 | AH20: 54 | AI20: 162 | AK20: LSA-N10SS(M)定格推力 | AL20: LSA-N10SS(M)最大推力 | AM20: N | AN20: 0
A21: 5： | B21: 収束時間 (sec) | D21: =AB11 -> 0.15 | E21: sec | N21: ﾊﾟﾀｰﾝ | O21: 8 | AD21: LSA-N15SS(M) | AE21: 0.15 | AF21: 4 | AG21: =10*(T25*0.001)+25 -> 35 | AH21: 86 | AI21: =IF(2000<D12,AJ21-(D12-2000)*0.036,AJ21) -> 258 | AJ21: 258 | AK21: LSA-N15SS(M)定格推力 | AL21: LSA-N15SS(M)最大推力 | AM21: N（設定速度により変化します） | AN21: 0
F22: F： 定速走行時間 (sec) | J22: =ROUNDUP(IF(D12<J12,(D15-(J19+J20))/D12,0),3) -> 0.299 | K22: sec | N22: ﾊﾟﾀｰﾝ | O22: 9 | AD22: LSA-N15HS(M) | AE22: 0.15 | AF22: 5 | AG22: =17*(T25*0.001)+30 -> 47 | AH22: 125 | AI22: =IF(2000<D12,AJ22-(D12-2000)*0.2,AJ22) -> 375 | AJ22: 375 | AK22: LSA-N15HS(M)定格推力 | AL22: LSA-N15HS(M)最大推力 | AM22: N（設定速度により変化します） | AN22: 0
A23: 6： | B23: 移動後の停止時間 (sec) | D23: 2 | E23: sec | F23: G : 定速時の走行距離 (mm) | J23: =ROUND(D12*J22,3) -> 299 | K23: mm | N23: ﾊﾟﾀｰﾝ | O23: 10 | T23: =SUM(J19+J20+J23) -> 400.974 | U23: ﾄｰﾀﾙ移動距離 | AD23: LSA-N19SS(M) | AE23: 0.2 | AF23: 5.5 | AG23: =16*(T25*0.001)+12 -> 28 | AH23: 100 | AI23: =TRUNC(IF(1000<D12,AJ23-(D12-1000)*0.0746666,AJ23)) -> 300 | AJ23: 300 | AK23: LSA-N19SS(M)定格推力 | AL23: LSA-N19SS(M)最大推力 | AM23: N（設定速度により変化します） | AN23: 0
B24: （収束時間を含まない作業時間） | F24: H：ﾄｰﾀﾙの位置決め時間 (sec)収束時間含む | J24: =ROUNDUP(J16+J17+J22+D21,3) -> 0.653 | K24: sec | N24: ﾊﾟﾀｰﾝ | O24: 11 | AD24: LSA-W21SS(M) | AE24: 0.15 | AF24: 10 | AG24: =20*(T25*0.001)+70 -> 90 | AH24: 200 | AI24: 600 | AK24: LSA-W21SS(M)定格推力 | AL24: LSA-W21SS(M)最大推力 | AM24: N | AN24: 0
A25: 7： | B25: ｽﾗｲﾀﾞ-積載重量 (kg) | D25: 1 | E25: kg | F25: J：ﾄｰﾀﾙの位置決め時間 (sec)収束時間含まない | J25: =ROUNDUP(J16+J17+J22,3) -> 0.503 | K25: sec | N25: ﾊﾟﾀｰﾝ | O25: 12 | T25: =IF(D12<J12,D12,J12) -> 1000 | AD25: LSA-W21HS(M) | AE25: 0.15 | AF25: 20 | AG25: =20*(T25*0.001)+70 -> 90 | AH25: 400 | AI25: 1200 | AK25: LSA-W21HS(M)定格推力 | AL25: LSA-W21HS(M)最大推力 | AM25: N | AN25: 0
N26: ﾊﾟﾀｰﾝ | O26: 13
A27: 8： | B27: ｽﾗｲﾀﾞ-自重 | D27: =AB12 -> 1.4 | E27: kg | F27: =AB16 -> LSA-S6SS(M)定格推力 | H27: =AB14 -> 15 | I27: N | N27: ﾊﾟﾀｰﾝ | O27: 14
F28: =AB17 -> LSA-S6SS(M)最大推力 | H28: =AB15 -> 60 | I28: =AB18 -> N | N28: ﾊﾟﾀｰﾝ | O28: 15
A29: 9： | B29: 加速に要する力 | D29: =ROUNDUP(((D25+D27)*D18*9.8+D31),3) -> 33.52 | E29: N | N29: ﾊﾟﾀｰﾝ | O29: 16
B30: （最大推力以下） | F30: I：１サイクルの運転時間 | J30: =ROUNDUP(J24+D23,3) -> 2.653 | K30: sec | N30: ﾊﾟﾀｰﾝ | O30: 17
A31: 10： | B31: 走行抵抗 | D31: =ROUNDUP((AB13),3) -> 10 | E31: N | I31: 最大推力 | N31: ﾊﾟﾀｰﾝ | O31: 18
I32: =IF(D29<H28,"OK!!","NG!!") -> OK!! | N32: ﾊﾟﾀｰﾝ | O32: 19
A33: 11： | B33: 減速に要する力 | D33: =ROUNDUP(((D25+D27)*D19*9.8-D31),3) -> 13.52 | E33: N | I33: 連続運転推力 | N33: ﾊﾟﾀｰﾝ | O33: 20
G34: =IF(D12<T16,"台形","三角") -> 台形 | I34: =IF(D35<H27,"OK!!","NG!!") -> OK!! | N34: ﾊﾟﾀｰﾝ | O34: 21
A35: 12： | B35: 連続運転推力 | D35: =ROUNDUP((SQRT(((D29)^2*J16+(D31)^2*J22+(D33)^2*J17)/J30)),3) -> 7.842 | E35: N | J35: 到達速度 | N35: ﾊﾟﾀｰﾝ | O35: 22
B36: （定格推力以下） | J36: =ROUNDDOWN(X12*T12,3) -> 1980.572 | K36: mm/s | N36: ﾊﾟﾀｰﾝ | O36: 23
J37: 設定速度 | N37: ﾊﾟﾀｰﾝ | O37: 24
A38: 13： | B38: 定格推力計算用 | D38: =((D29)^2*J16+(D31)^2*J22+(D33)^2*J17) -> 163.1142629 | F38: 距離(mm) | J38: =D12 -> 1000 | K38: mm/s | N38: ﾊﾟﾀｰﾝ | O38: 25
F39: =J19 -> 50.987 | G39: =ROUND(D12*J22,3) -> 299 | I39: =J20 -> 50.987 | N39: 合計連続運転時間(sec) | P39: =SUM(P14:P38) -> 2.152 | Q39: =SUM(Q14:Q38) -> 38.75962017
F40: =J16 -> 0.101972 | G40: =ROUND(IF(D12<J12,(D15-(J19+J20))/D12,0),3) -> 0.298 | I40: =J17 -> 0.101972 | J40: =D23+D21 -> 2.15
P41: 定格推力 | Q41: =AB14 -> 15 | R41: N以下
N42: 連続運転推力計算結果（N） | Q42: =SQRT(Q39/P39) -> 4.243934014 | R42: =IF(Q42<Q41,"OK!!","NG!!") -> OK!!
N43: （定格推力以下）
